bitfinex-derivatives/quotes_ETHF0:USTF0_20250220
["timestamp","ask_amount","ask_price","bid_price","bid_amount"]
[1740076788297,0.73,2739.1,2739.0,4.32257915]
[1740076788691,0.72999,2739.2,2739.1,0.73]
[1740076789500,1.82474,2739.5,2739.0,3.59257915]
[1740076789700,0.73,2739.1,2739.0,3.59257915]
[1740076789901,0.73,2739.1,2739.0,4.32260915]
[1740076790200,0.73,2739.1,2739.0,3.59257915]
[1740076790401,0.73,2739.1,2739.0,4.32260915]
[1740076791105,0.73,2739.1,2739.0,2.99967915]
[1740076791501,0.73,2739.1,2739.0,3.72970915]
[1740076792603,0.73,2739.1,2739.0,2.99967915]
[1740076792902,0.73,2739.1,2739.0,3.72970915]
[1740076793103,0.73,2739.1,2739.0,2.99967915]
[1740076793303,0.73,2739.1,2739.0,3.72970915]
[1740076794203,0.73,2739.1,2739.0,1.30870915]
[1740076794404,0.73,2739.1,2739.0,0.00547915]
[1740076795599,0.73,2739.1,2739.0,0.73550915]
[1740076796104,0.73,2739.1,2739.0,0.00547915]
[1740076796293,0.73,2739.1,2739.0,0.73550915]
[1740076797700,0.73,2739.1,2739.0,0.00547915]
[1740076799501,0.73,2739.1,2739.0,0.73550915]
[1740076800506,0.73,2739.1,2739.0,0.00547915]
[1740076800695,0.73,2739.1,2739.0,0.73550915]
[1740076802305,0.73,2739.1,2739.0,0.00547915]
[1740076802610,0.73,2739.1,2739.0,0.73550915]
[1740076803506,3.2078,2739.7,2739.0,0.00547915]
[1740076803701,0.5891,2739.8,2739.7,0.72983]
[1740076803907,0.5654,2740.2,2739.6,5.03244]
[1740076804108,0.5654,2740.2,2739.9,3.2078]
[1740076804311,0.73516915,2740.3,2739.9,3.2078]
[1740076804312,0.00547915,2740.3,2739.9,3.2078]
[1740076804606,0.00547915,2740.3,2740.0,0.5422]
[1740076804798,0.72971,2740.2,2740.1,0.5516]
[1740076805205,0.72976,2740.0,2739.9,3.2078]
[1740076805610,0.72975,2740.1,2739.9,3.2078]
[1740076805908,0.00547915,2740.3,2740.2,0.72971]
[1740076808206,0.73515915,2740.3,2740.0,0.72976]
[1740076808402,0.73515915,2740.3,2740.1,0.72973]
[1740076809009,0.72972,2740.2,2739.9,3.2078]
[1740076809514,0.00547915,2740.3,2740.0,0.72975]
[1740076809515,0.73517915,2740.3,2740.0,0.72975]
[1740076810008,0.73517915,2740.3,2740.1,0.72973]
[1740076810511,0.00547915,2740.3,2740.1,0.72973]
[1740076811408,0.00547915,2740.3,2739.9,3.2078]
[1740076811608,0.00547915,2740.3,2740.1,0.72973]
[1740076811804,0.73517915,2740.3,2740.1,0.72973]
[1740076812416,0.73517915,2740.3,2739.9,3.2078]
[1740076812417,0.73517915,2740.3,2740.2,0.72971]
[1740076812606,0.00547915,2740.3,2740.2,0.72971]
[1740076813305,0.73515915,2740.3,2740.2,0.72971]
[1740076813805,0.00547915,2740.3,2740.2,0.72971]
[1740076814413,0.00547915,2740.3,2739.9,3.2078]
[1740076814713,0.00547915,2740.3,2740.2,0.72971]
[1740076815022,0.73515915,2740.3,2740.2,0.72971]
[1740076815812,0.73515915,2740.3,2740.1,0.72971]
[1740076816018,0.00547915,2740.3,2740.2,0.72971]
[1740076816216,0.00547915,2740.3,2740.2,3.93751]
[1740076816521,0.00547915,2740.3,2740.2,6.35751]
[1740076816912,0.73515915,2740.3,2740.2,6.35751]
[1740076817117,0.73515915,2740.3,2740.2,5.6278]
[1740076817316,0.73515915,2740.3,2740.2,3.2078]
[1740076817820,0.73515915,2740.3,2740.2,3.93751]
[1740076818314,0.00547915,2740.3,2740.2,3.93751]
[1740076818521,0.00547915,2740.3,2740.2,4.50611]
[1740076819020,0.73515915,2740.3,2740.2,3.7764]
[1740076819317,0.00547915,2740.3,2740.2,4.50611]
[1740076826327,0.72974,2740.1,2740.0,0.72974]
[1740076826522,0.72973,2740.2,2740.0,0.72976]
[1740076826725,0.72973,2740.1,2740.0,0.72976]
[1740076827027,0.72976,2740.0,2739.9,3.93757]
[1740076827228,1.1198,2740.2,2739.9,3.2078]
[1740076827425,0.72975,2740.1,2740.0,0.72976]
[1740076827919,1.1198,2740.2,2739.9,3.2078]
[1740076828124,0.72976,2740.0,2739.9,3.2078]
[1740076828326,1.82434,2740.1,2739.6,0.72986]
[1740076828628,0.7298,2739.9,2739.5,5.6268]
[1740076828827,1.82434,2740.1,2739.6,0.72986]
[1740076829023,0.72983,2739.8,2739.7,0.72984]
[1740076829224,0.7298,2739.9,2739.5,5.6268]
[1740076829420,0.72981,2739.8,2739.7,0.72983]
[1740076830124,0.72979,2739.9,2739.5,5.6268]
[1740076830626,4.3276,2740.2,2739.5,5.6268]
[1740076830826,0.72977,2740.0,2739.5,7.45153]
[1740076831022,4.3276,2740.2,2739.5,7.45153]
[1740076831225,1.1198,2740.2,2740.1,0.72973]
[1740076831430,0.00547915,2740.3,2740.2,0.72971]
[1740076831624,0.00547915,2740.3,2739.9,1.82448]
[1740076831625,0.72971,2740.2,2739.9,2.419]
[1740076831929,0.72973,2740.1,2740.0,41.52974]
[1740076832134,0.72976,2740.0,2739.9,2.419]
[1740076832424,1.1674,2740.2,2739.9,2.419]
[1740076832629,0.72974,2740.1,2740.0,0.72975]
[1740076832833,0.72976,2740.0,2739.9,0.72978]
[1740076833220,1.1674,2740.2,2739.8,44.5728]
[1740076833623,1.89711,2740.2,2740.1,0.72973]
[1740076833917,0.72974,2740.1,2739.8,44.5728]
[1740076834126,1.1674,2740.2,2739.9,0.72977]
[1740076834127,0.72976,2740.0,2739.9,0.72977]
[1740076834728,0.72979,2739.9,2739.8,40.8]
[1740076834926,0.72984,2739.7,2739.6,1.1746]
[1740076835133,0.72987,2739.6,2739.5,3.93769]
[1740076835332,1.30357,2739.6,2739.5,3.2078]
[1740076835827,0.5737,2739.6,2739.5,3.93769]
[1740076836028,1.30357,2739.6,2739.5,3.93769]
[1740076836223,1.30357,2739.6,2739.5,3.2078]
[1740076837931,0.72996,2739.3,2739.1,4.52599]
[1740076838334,0.5684,2739.5,2739.1,3.796]
[1740076838731,0.72992,2739.4,2739.2,0.72996]
[1740076839535,0.72994,2739.4,2739.2,0.72997]
[1740076839731,0.5684,2739.5,2739.1,3.796]
[1740076839933,0.72996,2739.3,2739.1,4.52599]
[1740076841138,0.5684,2739.5,2739.1,3.2078]
[1740076841330,0.72997,2739.2,2739.1,3.2078]
[1740076842640,0.5684,2739.5,2739.1,3.2078]
[1740076842845,0.72997,2739.2,2739.1,3.2078]
[1740076843036,0.72997,2739.2,2739.1,3.93779]
[1740076843743,0.72997,2739.2,2739.1,0.72999]
[1740076844052,0.73,2739.1,2739.0,0.73548915]
[1740076844639,0.73,2739.2,2739.0,41.53548915]
[1740076844943,0.73,2739.1,2739.0,41.53548915]
[1740076847849,0.73,2739.1,2739.0,0.00547915]
[1740076848045,0.73,2739.1,2739.0,0.73550915]
[1740076848341,0.73,2739.1,2739.0,0.00547915]
[1740076848648,0.73,2739.1,2739.0,0.73550915]
[1740076848850,0.73,2739.1,2739.0,0.00547915]
[1740076849640,1.82483,2739.4,2739.0,0.00547915]
[1740076849840,3.7762,2739.5,2739.0,1.83054915]
[1740076850046,3.7762,2739.5,2739.0,0.00547915]
[1740076850247,0.72996,2739.3,2739.2,0.72997]
[1740076850551,0.5737,2739.6,2739.1,3.2078]
[1740076850745,3.7905,2739.8,2739.2,0.589]
[1740076850946,0.72985,2739.7,2739.6,0.72986]
[1740076851151,3.2078,2739.8,2739.3,0.5776]
[1740076851454,3.2078,2739.8,2739.4,2.9838]
[1740076851842,0.72988,2739.6,2739.4,3.7137]
[1740076852047,0.72988,2739.6,2739.5,0.72989]
[1740076853756,0.72987,2739.6,2739.5,0.72989]
[1740076854558,3.2078,2739.8,2739.4,2.9838]
[1740076854747,0.72989,2739.5,2739.4,3.71371]
[1740076854951,0.72989,2739.5,2739.4,3.7137]
[1740076855152,0.72992,2739.4,2739.3,0.5776]
[1740076855350,3.2078,2739.4,2738.7,40.8]
[1740076855556,0.73013,2738.6,2738.5,3.2078]
[1740076855754,0.73012,2738.7,2738.5,3.2078]
[1740076856056,2.949,2739.0,2738.5,3.93796]
[1740076856257,0.73013,2738.7,2738.5,3.93796]
[1740076856650,2.949,2739.0,2738.5,3.2078]
[1740076856651,0.73013,2738.6,2738.5,3.2078]
[1740076858162,0.73019,2738.4,2738.3,0.00547915]
[1740076861756,3.2078,2738.5,2737.8,3.2078]
[1740076861953,0.73029,2738.0,2737.5,0.73042]
[1740076862260,0.73029,2738.0,2737.4,3.2078]
[1740076862261,0.73043,2737.5,2737.4,3.2078]
[1740076862854,3.5005,2737.9,2737.5,0.73042]
[1740076863054,3.5005,2737.9,2737.6,0.7304]
[1740076863253,0.73039,2737.7,2737.5,1.26822]
[1740076863453,0.73038,2737.7,2737.5,1.26822]
[1740076863649,0.73036,2737.8,2737.5,0.5378]
[1740076863855,2.949,2737.9,2737.7,0.73036]
[1740076864058,3.67934,2737.9,2737.6,3.15038]
[1740076864263,3.67934,2737.9,2737.6,2.42]
[1740076864452,2.949,2737.9,2737.6,2.42]
[1740076864651,2.949,2737.9,2737.8,0.73035]
[1740076864959,0.5777,2738.4,2737.7,3.2078]
[1740076865265,0.5777,2738.4,2738.0,3.2078]
[1740076865453,0.5777,2738.4,2738.1,1.1113]
[1740076865654,0.5777,2738.4,2738.0,3.2078]
[1740076865655,0.73027,2738.1,2738.0,3.2078]
[1740076866062,0.5777,2738.4,2738.0,3.2078]
[1740076866256,0.73027,2738.1,2738.0,3.2078]
[1740076867159,0.73025,2738.2,2738.0,3.93809]
[1740076867360,0.5777,2738.4,2738.0,3.7468]
[1740076867563,0.73027,2738.1,2738.0,3.7468]
[1740076868266,0.73025,2738.2,2738.0,4.47709]
[1740076868467,0.73027,2738.1,2738.0,4.3056]
[1740076868663,0.73025,2738.2,2738.0,5.03589]
[1740076868961,0.73023,2738.3,2738.0,5.03588]
[1740076869468,0.73023,2738.3,2738.1,0.73025]
[1740076869765,0.73025,2738.2,2738.0,5.03588]
[1740076869965,1.82534,2738.6,2738.0,4.3056]
[1740076870168,4.3335,2738.7,2738.0,4.3056]
[1740076870367,0.73026,2738.2,2738.0,5.03589]
[1740076871271,6.15878,2738.7,2738.0,5.03589]
[1740076871272,6.15878,2738.7,2738.0,4.3056]
[1740076871470,0.73023,2738.3,2738.1,0.73025]
[1740076871662,6.15878,2738.7,2738.1,0.73027]
[1740076871663,4.3335,2738.7,2738.1,0.73027]
[1740076871869,0.73023,2738.3,2738.1,0.73026]
[1740076872166,4.3335,2738.7,2738.0,4.3056]
[1740076872969,0.73019,2738.4,2738.2,0.73022]
[1740076873171,0.73019,2738.4,2738.3,0.5522]
[1740076873964,1.1257,2738.7,2738.3,0.5522]
[1740076874175,1.1257,2738.7,2738.3,1.28241]
[1740076874378,0.73019,2738.4,2738.3,3.76]
[1740076874670,0.73019,2738.4,2738.3,4.49021]
[1740076875274,0.73019,2738.4,2738.3,3.76]
[1740076875674,0.73019,2738.4,2738.3,3.2078]
[1740076876564,1.1257,2738.7,2738.3,3.2078]
[1740076876771,0.73019,2738.5,2738.3,3.938]
[1740076877074,0.73016,2738.5,2738.4,0.73018]
[1740076877269,1.1257,2738.7,2738.4,0.73018]
[1740076877675,0.73019,2738.4,2738.3,3.2078]
[1740076878568,1.1257,2738.7,2738.3,3.2078]
[1740076878870,0.73019,2738.4,2738.3,3.93801]
[1740076880170,1.82534,2738.6,2738.0,4.8962]
[1740076880371,0.73022,2738.3,2738.2,0.73022]
[1740076880971,0.73025,2738.2,2738.1,0.73024]
[1740076881371,0.73024,2738.3,2738.2,0.73023]
[1740076881677,1.82534,2738.6,2738.1,0.73025]
[1740076881678,0.73025,2738.2,2738.1,0.73025]
[1740076881973,4.3335,2738.7,2738.0,4.8962]
[1740076882272,0.73026,2738.2,2738.1,0.73026]
[1740076882476,1.82542,2738.5,2738.0,4.8962]
[1740076882877,0.73025,2738.2,2738.1,0.73026]
[1740076883770,0.73027,2738.1,2738.0,5.62648]
[1740076884174,0.73026,2738.2,2738.1,0.73027]
[1740076884867,1.82542,2738.5,2738.0,4.8962]
[1740076885071,0.73027,2738.1,2738.0,5.62647]
[1740076885471,1.82542,2738.5,2738.0,4.8962]
[1740076885672,0.73023,2738.3,2738.2,0.73023]
[1740076885871,0.73023,2738.3,2738.2,0.73024]
[1740076886071,0.73023,2738.3,2738.0,4.8962]
[1740076886072,4.3335,2738.7,2738.0,4.8962]
[1740076886271,4.3335,2738.7,2738.1,4.24568]
[1740076886584,0.00547915,2738.9,2738.3,5.03334]
[1740076886878,0.73009,2738.8,2738.7,0.73011]
[1740076887081,0.73009,2738.8,2738.6,0.73011]
[1740076887267,0.73009,2738.8,2738.7,1.1325]
[1740076887880,0.73008,2738.8,2738.7,1.1325]
[1740076888077,0.73008,2738.8,2738.7,1.86261]
[1740076888373,0.73008,2738.8,2738.7,1.1325]
[1740076888575,0.00547915,2738.9,2738.7,1.1325]
[1740076888576,0.73554915,2738.9,2738.7,1.86259]
[1740076888780,0.73008,2738.8,2738.7,1.86259]
[1740076888981,0.00547915,2738.9,2738.7,1.86259]
[1740076889184,0.73008,2738.8,2738.7,1.8626]
[1740076889681,0.73008,2738.8,2738.7,1.86261]
[1740076891977,0.00547915,2738.9,2738.8,0.73008]
[1740076893486,0.73552915,2738.9,2738.8,0.73008]
[1740076893988,0.00547915,2738.9,2738.8,0.73008]
[1740076896087,0.73552915,2738.9,2738.8,0.73008]
[1740076896387,0.00547915,2738.9,2738.8,0.73008]
[1740076896684,0.73552915,2738.9,2738.8,0.73008]
[1740076897084,0.00547915,2738.9,2738.7,1.1325]
[1740076897280,0.73008,2738.8,2738.7,1.1325]
[1740076897486,0.73554915,2738.9,2738.7,1.1325]
[1740076897678,0.73554915,2738.9,2738.8,0.73008]
[1740076903482,0.00547915,2738.9,2738.8,0.73008]
[1740076905389,0.73552915,2738.9,2738.8,0.73008]
[1740076905591,0.00547915,2738.9,2738.8,0.73008]
[1740076909788,1.29705,2739.7,2738.7,1.1325]
[1740076909994,0.5672,2739.7,2739.3,3.2078]
[1740076910191,0.5672,2739.7,2739.6,0.72987]
[1740076910394,1.29705,2739.7,2739.5,0.72987]
[1740076910993,1.29705,2739.7,2739.3,6.7471]
[1740076910994,0.5672,2739.7,2739.3,6.7471]
[1740076911189,1.29705,2739.7,2739.5,0.72988]
[1740076911389,1.29705,2739.7,2739.6,0.72987]
[1740076911594,0.5672,2739.7,2739.3,6.7471]
[1740076911997,0.72988,2739.6,2739.3,6.7471]
[1740076912299,0.5672,2739.7,2739.3,6.7471]
[1740076913095,0.72992,2739.4,2739.3,5.6268]
[1740076913396,0.72992,2739.4,2739.3,6.35674]
[1740076913792,0.72991,2739.5,2739.3,6.35674]
[1740076914094,0.72992,2739.4,2739.3,6.35674]
[1740076914992,0.5672,2739.7,2739.3,6.35674]
[1740076915398,0.72991,2739.5,2739.3,5.6268]
[1740076915698,0.72992,2739.4,2739.3,6.35673]
[1740076917192,0.5672,2739.7,2739.3,5.6268]
[1740076917398,0.5672,2739.7,2739.6,0.72987]
[1740076919105,0.00547915,2739.9,2739.8,0.72981]
[1740076919395,0.00547915,2739.9,2739.6,3.2078]
[1740076919396,0.72981,2739.8,2739.7,1.83174]
[1740076919600,0.00547915,2739.9,2739.8,0.72981]
[1740076919601,0.73526915,2739.9,2739.8,0.72981]
[1740076919800,0.73526915,2739.9,2739.7,1.1019]
[1740076920003,0.73526915,2739.9,2739.8,0.72981]
[1740076920196,0.00547915,2739.9,2739.8,0.72981]
[1740076920402,0.00547915,2739.9,2739.8,1.28191]
[1740076921495,0.00547915,2739.9,2739.8,0.72981]
[1740076921800,0.73526915,2739.9,2739.8,0.72981]
[1740076922001,0.73526915,2739.9,2739.7,1.1019]
[1740076922407,0.00547915,2739.9,2739.8,0.72981]
[1740076922911,0.73527915,2739.9,2739.7,1.1019]
[1740076923111,0.73527915,2739.9,2739.8,0.72981]
[1740076924012,0.73527915,2739.9,2739.7,1.1019]
[1740076924215,0.73527915,2739.9,2739.8,0.72981]
[1740076924409,0.00547915,2739.9,2739.6,3.2078]
[1740076924710,0.00547915,2739.9,2739.2,3.2078]
[1740076924907,0.72994,2739.4,2739.3,2.418]
[1740076925414,0.72994,2739.4,2739.3,3.14795]
[1740076925609,1.1343,2739.7,2739.3,2.418]
[1740076925927,0.72989,2739.6,2739.4,1.26781]
[1740076926304,0.72989,2739.5,2739.4,0.5379]
[1740076926504,0.557,2739.5,2739.2,5.6258]
[1740076926706,0.72995,2739.3,2739.2,3.2078]
[1740076927107,5.03266,2739.4,2738.8,5.6258]
[1740076927302,0.73004,2739.0,2738.8,6.35588]
[1740076927502,5.03266,2739.4,2738.9,0.73005]
[1740076927503,0.73002,2739.1,2738.9,0.73005]
[1740076927710,5.03266,2739.4,2738.8,6.35586]
[1740076927912,0.73003,2739.1,2738.9,0.73005]
[1740076928513,5.03266,2739.4,2738.8,3.93786]
[1740076928514,0.73004,2739.0,2738.8,3.93786]
[1740076928708,0.562,2739.0,2738.8,3.93786]
[1740076928914,0.5722,2738.9,2738.8,3.93786]
[1740076929618,0.5722,2738.9,2738.8,0.73006]
[1740076930012,0.5722,2738.9,2738.7,40.8]
[1740076930210,0.5722,2738.9,2738.8,0.73008]
[1740076930410,1.30225,2738.9,2738.8,0.73008]
[1740076930716,0.5722,2738.9,2738.8,0.73008]
[1740076931116,0.5722,2738.9,2738.6,0.56097915]
[1740076931312,1.30225,2738.9,2738.7,0.73008]
[1740076931513,0.5722,2738.9,2738.6,0.56097915]
[1740076931817,0.5722,2738.9,2738.6,1.29110915]
[1740076932119,0.7301,2738.8,2738.6,1.29110915]
[1740076932813,0.73011,2738.7,2738.6,0.00547915]
[1740076933016,1.27551,2738.7,2738.6,0.00547915]
[1740076935325,0.5722,2738.9,2738.8,0.73008]
[1740076935326,1.30225,2738.9,2738.8,0.73008]
[1740076935516,0.73008,2738.8,2738.7,1.6287]
[1740076935716,0.73011,2738.7,2738.6,0.00547915]
[1740076935923,0.73011,2738.7,2738.6,40.80547915]
[1740076936117,0.73011,2738.7,2738.6,0.00547915]
[1740076936524,0.73011,2738.7,2738.6,0.73560915]
[1740076936912,3.2078,2738.8,2738.6,0.00547915]
[1740076937114,3.93791,2738.8,2738.7,0.73011]
[1740076938019,1.29205,2739.0,2738.9,0.73005]
[1740076938428,1.29205,2739.0,2738.9,41.53005]
[1740076938720,3.2078,2739.2,2739.1,0.73]
[1740076938929,0.5881,2739.3,2739.2,0.72997]
[1740076938930,1.31805,2739.3,2739.2,0.72997]
[1740076939114,0.72997,2739.2,2738.9,40.8]
[1740076939317,0.72997,2739.2,2739.0,0.73002]
[1740076939514,1.31806,2739.3,2739.1,0.72999]
[1740076939720,0.5881,2739.3,2738.9,40.8]
[1740076940523,0.73001,2739.1,2739.0,0.73002]
[1740076941021,0.5881,2739.3,2738.9,40.8]
[1740076941325,0.5881,2739.3,2738.7,4.934]
[1740076941529,0.72999,2739.2,2738.7,4.934]
[1740076941723,0.72999,2739.2,2739.0,0.73002]
[1740076942424,0.5684,2739.4,2738.9,2.418]
[1740076942618,2.949,2739.6,2739.0,3.2078]
[1740076942823,1.1615,2739.7,2739.0,3.2078]
[1740076943222,0.72993,2739.4,2739.2,0.72996]
[1740076943421,0.72993,2739.4,2739.3,1.1036]
[1740076943621,0.72993,2739.4,2739.3,1.6854]
[1740076944822,0.72993,2739.4,2739.0,3.2078]
[1740076944823,3.2078,2739.6,2739.0,5.6258]
[1740076945028,0.73,2739.1,2739.0,2.418]
[1740076946029,3.2078,2739.6,2739.3,0.72995]
[1740076946219,0.72994,2739.4,2739.2,0.72996]
[1740076946419,0.7299,2739.5,2739.3,0.5845]
[1740076946625,0.72988,2739.6,2739.5,0.72988]
[1740076947229,0.72987,2739.7,2739.4,1.1288]
[1740076947533,3.21327915,2739.9,2739.4,1.1288]
[1740076947534,0.72987,2739.6,2739.5,0.72989]
[1740076947733,3.21327915,2739.9,2739.5,0.72989]
[1740076947922,3.21327915,2739.9,2739.4,1.1288]
[1740076948122,0.72983,2739.8,2739.7,0.72983]
[1740076948323,0.00547915,2739.9,2739.8,0.72981]
[1740076948928,0.00547915,2739.9,2739.8,3.14781]
[1740076949530,3.2078,2740.6,2739.8,2.418]
[1740076949828,3.2078,2740.6,2740.0,3.2078]
[1740076949829,3.7888,2740.6,2740.0,3.2078]
[1740076950029,3.2078,2740.9,2740.3,3.2078]
[1740076950333,0.5418,2741.7,2740.7,0.72956]
[1740076950334,0.72949,2741.1,2740.7,0.72956]
[1740076951536,0.72949,2741.1,2740.6,3.21327915]
[1740076951736,0.72949,2741.1,2740.7,0.72956]
[1740076953434,0.7295,2741.0,2740.7,0.72956]
[1740076953632,0.00547915,2741.2,2740.6,3.75347915]
[1740076953633,0.00547915,2741.2,2740.6,3.21327915]
[1740076953838,0.72958,2740.7,2740.6,0.00547915]
[1740076954239,0.72953,2740.9,2740.6,0.00547915]
[1740076954442,0.00547915,2741.2,2740.6,0.00547915]
[1740076954643,0.72954,2740.9,2740.6,0.00547915]
[1740076954939,0.72953,2740.9,2740.6,0.00547915]
[1740076955136,0.72955,2740.8,2740.6,0.00547915]
[1740076955330,2.95447915,2741.2,2740.6,0.00547915]
[1740076955535,0.72954,2740.9,2740.6,0.73507915]
[1740076955735,2.95447915,2741.2,2740.6,0.00547915]
[1740076955942,0.72947,2741.1,2740.8,0.72955]
[1740076956144,2.95447915,2741.2,2740.7,0.5484]
[1740076956539,2.95447915,2741.2,2740.8,3.0025]
[1740076956739,3.68392915,2741.2,2740.8,3.0025]
[1740076956935,3.68392915,2741.2,2740.9,0.7295]
[1740076957136,3.68392915,2741.2,2740.8,3.0025]
[1740076957137,2.95447915,2741.2,2740.8,3.0025]
[1740076957338,3.68393915,2741.2,2740.9,0.72951]
[1740076957633,0.72947,2741.1,2740.9,0.72951]
[1740076960044,0.72947,2741.1,2740.9,0.72952]
[1740076960238,2.95447915,2741.2,2740.8,3.0025]
[1740076960443,0.72951,2741.0,2740.8,3.73204]
[1740076960841,0.72951,2741.0,2740.8,3.73203]
[1740076961140,0.72947,2741.1,2740.9,0.72951]
[1740076961338,0.72949,2741.1,2740.9,0.72951]
[1740076962543,0.00547915,2741.2,2740.8,3.0025]
[1740076962745,0.72951,2741.0,2740.8,3.73203]
[1740076963040,0.72951,2741.0,2740.8,3.0025]
[1740076963349,0.72951,2741.0,2740.9,0.72952]
[1740076963652,0.7295,2741.0,2740.9,0.72952]
[1740076964243,0.5549,2741.1,2740.8,3.0025]
[1740076964441,0.72951,2741.0,2740.8,3.73202]
[1740076964646,0.72951,2741.0,2740.9,0.72952]
[1740076966852,0.5549,2741.1,2740.8,3.0025]
[1740076967048,0.72952,2740.9,2740.8,3.14653]
[1740076967254,0.72956,2740.8,2740.7,3.14556]
[1740076967746,0.72951,2741.0,2740.9,0.72951]
[1740076968052,0.72951,2741.0,2740.9,0.72952]
[1740076968241,0.5549,2741.1,2740.7,2.416]
[1740076968441,0.72951,2741.0,2740.9,0.72951]
[1740076968646,0.5549,2741.1,2740.7,2.416]
[1740076968854,0.7295,2741.0,2740.9,0.72951]
[1740076969051,0.5549,2741.1,2740.7,2.416]
[1740076969052,1.28438,2741.1,2741.0,0.7295]
[1740076969352,0.5549,2741.1,2740.7,2.416]
[1740076969647,0.00547915,2741.2,2740.7,2.416]
[1740076969846,0.00547915,2741.2,2741.1,0.72947]
[1740076970250,3.2078,2742.1,2741.1,43.216]
[1740076970454,0.5753,2741.8,2741.2,3.8002]
[1740076970747,0.72934,2741.6,2741.2,3.8002]
[1740076970948,0.72934,2741.6,2741.4,0.72938]
[1740076971157,0.72936,2741.6,2741.3,0.7294]
[1740076971455,0.72942,2741.4,2741.2,3.2078]
[1740076971953,0.72942,2741.3,2741.2,3.2078]
[1740076972348,2.38965915,2741.7,2741.2,3.2078]
[1740076972655,0.72942,2741.3,2741.2,3.2078]
[1740076972844,2.38965915,2741.7,2741.0,1.1416]
[1740076972845,0.56637915,2741.7,2741.0,1.1416]
[1740076973047,0.7295,2741.0,2740.9,3.2078]
[1740076973351,1.82348,2741.4,2740.8,3.0084]
[1740076973552,0.72955,2740.8,2740.6,3.94287915]
[1740076974050,0.72955,2740.8,2740.6,0.73507915]
[1740076974457,0.72958,2740.7,2740.6,0.00547915]
[1740076984062,0.72958,2740.7,2740.6,0.73507915]
[1740076984854,0.5395,2740.9,2740.6,0.00547915]
[1740076985056,2.949,2741.0,2740.6,3.21327915]
[1740076985358,2.949,2741.0,2740.9,0.72952]
[1740076987458,2.949,2741.0,2740.9,3.93732]
[1740076989455,2.949,2741.0,2740.9,6.35332]
[1740076989657,2.949,2741.0,2740.7,0.594]
[1740076989658,0.72953,2740.9,2740.7,4.53136]
[1740076989955,0.72955,2740.8,2740.7,0.594]
[1740076990257,0.72955,2740.8,2740.6,3.21327915]
[1740076990258,1.1324,2740.9,2740.6,0.00547915]
[1740076990555,0.72958,2740.7,2740.6,0.00547915]
[1740076996468,3.93738,2740.7,2740.6,0.00547915]
[1740076999175,4.49728,2740.7,2740.6,0.00547915]
[1740077002076,4.49728,2740.7,2740.6,9.15e-06]
[1740077009182,6.91328,2740.7,2740.6,9.15e-06]
[1740077013974,0.72979,2739.9,2739.8,1.1509]
[1740077014184,0.72979,2739.9,2739.6,0.5587]
[1740077014185,0.72984,2739.7,2739.6,0.5587]
[1740077019087,0.73526915,2739.9,2739.8,0.72981]
[1740077019389,0.72984,2739.8,2739.7,0.72983]
[1740077019687,0.72984,2739.8,2739.7,41.52983]
[1740077020281,0.72984,2739.8,2739.7,40.8]
[1740077022084,0.72984,2739.7,2739.6,2.9747]
[1740077022288,0.72984,2739.7,2739.6,0.5587]
[1740077022786,0.72984,2739.7,2739.6,41.3587]
[1740077024380,0.72984,2739.7,2739.6,0.5587]
[1740077025188,0.72984,2739.7,2739.4,1.17487915]
[1740077025189,0.72989,2739.5,2739.4,1.17487915]
[1740077026094,4.77896915,2739.9,2739.4,1.17487915]
[1740077026387,0.72989,2739.5,2739.4,1.17487915]
[1740077027287,4.77896915,2739.9,2739.4,1.17487915]
[1740077027594,0.72989,2739.5,2739.4,1.90478915]
[1740077027884,0.72989,2739.5,2739.4,1.17487915]
[1740077028289,4.77896915,2739.9,2739.4,1.17487915]
[1740077028491,0.72989,2739.6,2739.5,0.72989]
[1740077028685,0.72989,2739.6,2739.4,1.17487915]
[1740077028686,0.72989,2739.5,2739.4,1.90477915]
[1740077030090,0.00547915,2739.9,2739.4,2.99965915]
[1740077030292,0.00547915,2739.9,2739.5,3.2078]
[1740077030488,0.72984,2739.8,2739.7,0.72983]
[1740077030697,0.72984,2739.8,2739.5,3.2078]
[1740077030698,0.00547915,2739.9,2739.6,40.8]
[1740077030888,0.72982,2739.8,2739.7,0.72984]
[1740077031287,0.00547915,2739.9,2739.6,40.8]
[1740077031489,0.72982,2739.8,2739.7,0.72982]
[1740077033189,0.72982,2739.8,2739.7,0.72984]
[1740077034192,0.72982,2739.8,2739.6,40.8]
[1740077034193,0.72984,2739.7,2739.6,40.8]
[1740077034495,0.00547915,2739.9,2739.5,3.2078]
[1740077034496,0.72987,2739.6,2739.5,3.2078]
[1740077035087,0.72987,2739.6,2739.4,3.59087915]
[1740077035088,0.72989,2739.5,2739.4,1.17487915]
[1740077035289,0.72989,2739.5,2739.4,1.90479915]
[1740077035595,0.72989,2739.5,2739.4,1.17487915]
[1740077036192,0.72989,2739.5,2739.4,0.00547915]
[1740077038393,2.41996,2739.8,2739.4,0.00547915]
[1740077038394,0.5954,2739.8,2739.4,0.00547915]
[1740077038594,0.72989,2739.5,2739.4,0.00547915]
[1740077044292,0.72989,2739.5,2739.4,0.73539915]
[1740077045094,0.72989,2739.5,2739.4,0.00547915]
[1740077046995,3.93765,2739.7,2739.6,0.72987]
[1740077047805,0.72987,2739.6,2739.5,1.7225]
[1740077048102,0.72987,2739.6,2739.5,2.45239]
[1740077048894,3.2078,2739.7,2739.5,1.7225]
[1740077049198,0.72987,2739.6,2739.5,1.7225]